[Event "15th Paleochora Open 2022"]
[Site "Paleochora"]
[Date "2022.07.18"]
[Round "2.9"]
[White "Santiago, Yago De Moura"]
[Black "Levi, Netanel"]
[Result "1/2-1/2"]
[ECO "E95"]
[WhiteElo "2513"]
[BlackElo "2193"]
[Annotator "TA"]
[PlyCount "104"]
[EventDate "2022.07.17"]
[EventType "swiss"]
[EventCountry "GRE"]
[SourceTitle "playchess.com"]
[Source "ChessBase"]
[SourceQuality "1"]
[TimeControl "40/5400+30:900+30"]

{[%evp 17,104,19,39,42,42,39,43,15,29,20,18,23,40,47,46,31,43,36,48,45,54,0,32,27,64,59,51,58,49,40,40,46,72,41,27,34,39,-52,-61,-62,-37,-36,0,0,0,-63,-37,-38,0,-22,0,0,4,-102,-105,-109,-78,-77,-96,-145,0,0,0,0,0,-8,-8,-8,-8,-8,0,0,0,0,0,-12,0,-10,-9,-32,0,0,0,-32,0,0,0,-33,0]} 1. d4 {[%emt 0:00:07]} Nf6 {[%emt 0:00:07]} 2. c4 {[%emt 0:00:08]} d6 {[%emt 0:00:23]} 3. Nf3 {[%emt 0:01:03]} g6 {[%emt 0:00:20]} 4. Nc3 {[%emt 0:01:24]} Nbd7 {[%emt 0:00:16]} 5. e4 {[%emt 0:01:35]} e5 {[%emt 0:00:39]} 6. Be2 {[%emt 0:00:12]} Bg7 {[%emt 0:00:05]} 7. O-O {[%emt 0:00:08]} O-O {[%emt 0:00:03]} 8. Re1 {[%emt 0:02:54]} Re8 {[%emt 0:00:10]} 9. Bf1 {[%emt 0:00:07]} a6 {[%emt 0:00:06]} 10. d5 {[%emt 0:04:26] E95: King's Indian: Classical: 7...Nbd7 8 Re1.} a5 {[%emt 0:00:06]} 11. Bg5 {[%emt 0:00:23][%cal Bc1g5,Bg5h4,Bh4g3][%mdl 32]} h6 {[%emt 0:01:42]} 12. Bh4 {[%emt 0:00:07] White is slightly better.} g5 {[%emt 0:00:58]} 13. Bg3 {[%emt 0:00:07]} Nh5 {[%emt 0:00:37]} 14. Nd2 {[%emt 0:02:51]} Nf4 {[%emt 0:00:29]} 15. f3 {[%emt 0:13:01]} Nc5 {[%emt 0:04:53]} 16. Qc2 {[%emt 0:00:14] [#]} h5 $146 {[%emt 0:02:30]} ({Predecessor:} 16... Na6 17. a3 c5 18. Nd1 Bd7 19. b3 Nc7 20. Ne3 Rb8 21. Rab1 b5 22. cxb5 Bxb5 {1-0 (49) Sakalauskas,V (2410)-Rudolf,M (2384) Mrzezyno 2011}) 17. Bf2 {[%emt 0:00:54]} b6 {[%emt 0:00:08]} 18. b3 {[%emt 0:01:17]} g4 {[%emt 0:04:30]} 19. a3 {[%emt 0:00:18]} (19. g3 $14) 19... Bh6 {[%emt 0:02:09]} 20. b4 {[%emt 0:02:57]} axb4 {[%emt 0:04:41]} 21. axb4 {[%emt 0:00:09]} Rxa1 {[%emt 0:00:36]} 22. Rxa1 {[%emt 0:00:06]} Na6 {[%emt 0:00:06]} 23. Ra4 {[%emt 0:08:40] Hoping for fxg4.} Qg5 {[%emt 0:01:29][%cal Of4h3]} 24. fxg4 {[%emt 0:06:43]} Nxg2 {[%emt 0:24:10]} 25. Bxg2 {[%emt 0:00:38]} Qxd2 {[%emt 0:00:08]} 26. Qxd2 {[%emt 0:00:04]} Bxd2 {[%emt 0:00:06]} 27. Na2 {[%emt 0:00:16]} (27. Nb5 $1 $14) 27... hxg4 $15 {[%emt 0:01:04]} 28. Bf1 {[%emt 0:01:46]} Kg7 {[%emt 0:15:41]} 29. Bd3 $1 {[%emt 0:05:46]} Bb7 {[%emt 0:08:17]} 30. Be2 {[%emt 0:01:50]} Bc8 {[%emt 0:04:58]} 31. Kg2 {[%emt 0:03:27]} (31. Bd3 $1 $11) 31... Kg6 {[%emt 0:00:39]} 32. Kf1 $1 {[%emt 0:17:47]} Rh8 {[%emt 0:01:29]} 33. Bg3 {[%emt 0:00:23][%cal Oc4c5]} f5 {[%emt 0:03:00]} 34. exf5+ {[%emt 0:00:14]} Kxf5 {[%emt 0:00:02]} 35. Bd3+ {[%emt 0:00:43]} (35. c5 $1 $11) 35... e4 $17 {[%emt 0:00:13]} 36. Be2 {[%emt 0:10:29]} Bb7 {[%emt 0:02:41]} 37. c5 {[%emt 0:00:13] [#]} bxc5 {[%emt 0:05:21]} 38. Bxa6 {[%emt 0:00:06]} Bxd5 {[%emt 0:03:24]} (38... Bxa6+ $17 39. Rxa6 cxb4) 39. Ke2 {[%emt 0:04:30]} e3 {[%emt 0:06:48] Threatens to win with ...c4.} 40. bxc5 {[%emt 0:00:00]} dxc5 {[%emt 0:00:00]} 41. Bd3+ {[%emt 0:02:19]} Kg5 {[%emt 0:02:22]} 42. Bf4+ {[%emt 0:01:46]} ({Don't go for} 42. Bxc7 $2 Bf3+ 43. Kf1 Rf8 $19) 42... Kf6 {[%emt 0:02:34] aiming for ...Re8.} 43. Bxc7 {[%emt 0:20:43]} Bf3+ {[%emt 0:06:46]} 44. Kf1 {[%emt 0:00:11]} Rc8 {[%emt 0:04:58]} 45. Bg3 {[%emt 0:01:25]} Rc6 {[%emt 0:04:24]} 46. h3 {[%emt 0:01:54]} c4 {[%emt 0:01:13]} 47. Bxc4 {[%emt 0:01:29]} Bd1 {[%emt 0:00:18]} 48. Bh4+ {[%emt 0:01:01]} Ke5 {[%emt 0:00:15][%mdl 1024] Black has compensation.} (48... Kg6 $5 49. Ra6 (49. Bd3+ $2 Kh5 $19) 49... Rxa6 50. Bxa6 gxh3 $11) 49. Bg3+ {[%emt 0:00:08]} Kf6 {[%emt 0:00:19]} 50. Bh4+ {[%emt 0:00:48]} Ke5 {[%emt 0:00:03]} (50... Kg6 $5 51. Ra6 (51. Bd3+ $2 Kh5 $19) 51... Rxa6 52. Bxa6 gxh3 $11) 51. Bg3+ {[%emt 0:00:10]} Kf6 {[%emt 0:00:05]} 52. Bh4+ {[%emt 0:00:06]} Ke5 {[%emt 0:00:30] Weighted Error Value: White=0.15 (very precise) /Black=0.17 (very precise)} (52... Kg6 $5 53. Ra6 (53. Bd3+ $2 Kh5 $19) 53... Rxa6 54. Bxa6 gxh3 $11) 1/2-1/2

[Event "15th Paleochora Open 2022"]
[Site "Paleochora"]
[Date "2022.07.18"]
[Round "2.10"]
[White "Rahmanidis, Petros"]
[Black "Grigorov, Grigor"]
[Result "0-1"]
[ECO "B10"]
[WhiteElo "2191"]
[BlackElo "2511"]
[Annotator "TA"]
[PlyCount "106"]
[EventDate "2022.07.17"]
[EventType "swiss"]
[EventCountry "GRE"]
[SourceTitle "playchess.com"]
[Source "ChessBase"]
[SourceQuality "1"]
[TimeControl "40/5400+30:900+30"]

{[%evp 9,106,15,15,6,19,23,13,22,22,18,39,56,35,7,6,3,14,8,16,0,0,-43,-43,-33,-31,-58,-68,-73,-86,-189,-138,-139,-117,-132,-127,-132,-118,-89,-14,-21,-12,-52,-8,-90,-82,-298,-144,-139,-139,-156,-144,-148,-148,-147,-146,-151,-152,-155,-141,-153,-142,-143,-145,-145,-151,-157,-137,-146,-163,-126,-111,-181,-179,-195,-193,-247,-241,-329,-318,-327,-304,-294,-260,-276,-256,-259,-253,-463,-391,-514,-517,-629,-641,-727,-727,-1035,-881,-1989,-1920]} 1. e4 {[%emt 0:00:05]} c6 {[%emt 0:00:08]} 2. Nf3 {[%emt 0:00:22]} d5 {[%emt 0:00:10]} 3. d3 {[%emt 0:00:05]} g6 {[%emt 0:02:17]} 4. e5 {[%emt 0:00:37]} Bg7 {[%emt 0:01:18]} 5. d4 {[%emt 0:00:20]} f6 {[%emt 0:01:01]} 6. exf6 {[%emt 0:00:31] B10: Caro-Kann: 2 d3 and 2 c4.} Nxf6 {[%emt 0:07:05]} 7. Be2 {[%emt 0:00:44]} O-O {[%emt 0:02:56]} 8. O-O {[%emt 0:00:21] [#] The position is equal.} Ne4 $146 {[%emt 0:01:12]} ({Predecessor:} 8... Bg4 9. Nbd2 Qd6 10. Ne5 Bxe2 11. Qxe2 Nbd7 12. f4 c5 13. c3 cxd4 14. cxd4 Rac8 {½-½ (49) Sjugirov,S (2680)-Grandelius,N (2672) Chess.com INT 2022}) 9. Nbd2 {[%emt 0:03:56]} Bf5 {[%emt 0:05:14]} 10. Nxe4 {[%emt 0:14:35]} Bxe4 {[%emt 0:03:53]} 11. Be3 {[%emt 0:07:16]} Bxf3 {[%emt 0:12:42]} 12. Bxf3 {[%emt 0:00:23]} Nd7 {[%emt 0:00:43]} 13. Be2 {[%emt 0:30:45]} e5 {[%emt 0:04:00]} 14. c4 {[%emt 0:01:15]} c5 {[%emt 0:05:24]} 15. dxe5 {[%emt 0:12:07]} (15. dxc5 d4 16. Bd2 e4 $15) 15... d4 {[%emt 0:00:08][%cal Bd5d4,Bd4d3][%mdl 32]} 16. Bd2 {[%emt 0:00:03]} (16. e6 dxe3 17. exd7 exf2+ 18. Kh1 (18. Rxf2 $2 Rxf2 19. Kxf2 Bd4+ 20. Kf1 Qxd7 $19) 18... Bd4 $17) 16... Nxe5 {[%emt 0:02:00]} 17. Re1 {[%emt 0:02:59]} d3 {[%emt 0:04:30]} 18. Bf1 {[%emt 0:01:35]} Qh4 {[%emt 0:04:36] Inhibits Re4.} 19. g3 {[%emt 0:04:41]} (19. f3 $17) 19... Qxc4 {[%emt 0:00:36]} (19... Qd4 $19 20. Bf4 Rxf4 21. gxf4 Qxf4) 20. f4 $17 {[%emt 0:00:45]} Nc6 {[%emt 0:01:31]} 21. Rc1 {[%emt 0:05:30]} Qd5 $36 {[%emt 0:06:41][%mdl 2048] Black has strong initiative.} (21... Qxa2 22. Bxd3 Kh8 23. Bc3 $15) 22. Be3 {[%emt 0:05:44][%csl LRc5,LRd3] [#]} Rad8 $1 {[%emt 0:06:15] 0x0.00200b16731bdp-1022s more active pieces.} (22... Qxa2 23. Qxd3 b6 24. Qd7 $16) ({Resist} 22... Bxb2 23. Rxc5 Qxa2 24. Qxd3 $16 (24. Bxd3 Kh8 $14)) 23. Rxc5 {[%emt 0:03:54] [#]} Qxa2 {[%emt 0:00:23]} (23... Qd6 $1 $17 {...d2 is the strong threat.} 24. Qb3+ Rf7) 24. Bxd3 $11 {[%emt 0:01:06]} Qxb2 {[%emt 0:00:14]} 25. Qa4 {[%emt 0:02:08] Black must now prevent Rb1.} Bd4 {[%emt 0:02:41]} (25... Kh8 $5 {[%cal Rd8d3]} 26. Rb1 Qf6 27. Rxb7 Rxd3 28. Rxc6 Qd8 $11) 26. Qc4+ {[%emt 0:00:07]} (26. Bxd4 $11 Qxd4+ 27. Qxd4 Rxd4 28. Be4) 26... Kh8 {[%emt 0:00:25]} 27. Rb5 {[%emt 0:00:23]} (27. Re2 $17 {was worth a try.} Qa1+ 28. Qc1) 27... Qd2 {[%emt 0:00:38]} (27... Bxe3+ $19 {has better winning chances.} 28. Rxe3 Qd2) 28. Qxd4+ $17 {[%emt 0:01:37]} Nxd4 {[%emt 0:01:19] Chess con chili.} 29. Bxd2 {[%emt 0:00:03] This bishop pair is nice.} Nxb5 {[%emt 0:00:12][%mdl 64] Pin} 30. Bb4 {[%emt 0:00:50] [#]} Rxd3 {[%emt 0:00:55]} 31. Bxf8 {[%emt 0:00:03][%mdl 4096] Endgame KRB-KRN} Kg8 {[%emt 0:00:18]} 32. Bc5 {[%emt 0:00:49]} b6 {[%emt 0:00:58]} 33. Bf2 {[%emt 0:00:44]} Kf7 {[%emt 0:00:12] Against Re7+} 34. Kg2 {[%emt 0:00:27]} Nc3 {[%emt 0:05:13]} 35. Ra1 {[%emt 0:00:37]} Rd7 {[%emt 0:00:07]} 36. Kf3 {[%emt 0:00:22]} Ke6 {[%emt 0:00:31]} 37. g4 {[%emt 0:00:25]} Rd3+ {[%emt 0:00:24]} 38. Kg2 {[%emt 0:00:06]} Ne4 {[%emt 0:02:19]} 39. Bg1 {[%emt 0:00:46]} Rd7 {[%emt 0:01:00]} 40. Kf3 {[%emt 0:00:00]} (40. Re1 $17 {is a better defense.} Kd5 41. Rd1+ Kc6 42. Rc1+ Nc5 43. Bxc5 bxc5 44. Kf3) 40... Nd2+ $19 {[%emt 0:00:00]} 41. Kg2 {[%emt 0:03:34]} Nc4 {[%emt 0:00:46]} 42. Rb1 {[%emt 0:05:43]} (42. Kf3 $142) 42... Rb7 {[%emt 0:03:17]} 43. Kf2 {[%emt 0:05:04]} b5 {[%emt 0:00:29]} 44. Ke2 {[%emt 0:00:05]} a5 {[%emt 0:00:32]} 45. Kd3 {[%emt 0:00:23]} Kd5 {[%emt 0:01:40] aiming for ...b4.} 46. Bd4 {[%emt 0:01:47]} b4 {[%emt 0:01:27]} 47. Rc1 {[%emt 0:01:35]} Rc7 {[%emt 0:00:09][%cal Oc4e5] Threatens to win with ...Ne5+!} 48. Rb1 $2 {[%emt 0:01:15] [#]} (48. Re1) 48... Nd2 $1 {[%emt 0:01:48][%mdl 512]} 49. Rb2 {[%emt 0:00:55]} (49. Rd1 Nb3) 49... Ne4 {[%emt 0:01:46] And now ...Rc4 would win. Black is clearly winning.} 50. Be5 {[%emt 0:00:31]} Rc4 {[%emt 0:00:15]} 51. Ra2 {[%emt 0:00:28]} a4 {[%emt 0:00:11] Strongly threatening ...b3.} 52. Ke3 {[%emt 0:00:25]} b3 {[%emt 0:00:49]} 53. Ra1 {[%emt 0:00:35]} Nc3 {[%emt 0:00:34] Weighted Error Value: White=0.50/Black=0.10 (very precise)} 0-1

[Event "15th Paleochora Open 2022"]
[Site "Paleochora"]
[Date "2022.07.18"]
[Round "2.11"]
[White "Rucek, Kristian"]
[Black "Yankelevich, Lev"]
[Result "0-1"]
[ECO "E15"]
[WhiteElo "2186"]
[BlackElo "2496"]
[Annotator "TA"]
[PlyCount "96"]
[EventDate "2022.07.17"]
[EventType "swiss"]
[EventCountry "GRE"]
[SourceTitle "playchess.com"]
[Source "ChessBase"]
[SourceQuality "1"]
[TimeControl "40/5400+30:900+30"]

{[%evp 19,96,19,18,14,4,0,0,9,12,-12,-5,-5,0,0,0,0,-14,-27,-27,-7,-18,-54,-54,-54,-54,-54,0,-31,-47,-85,-78,-132,-116,-158,-166,-156,-168,-156,-164,-155,-152,-170,-171,-177,-168,-258,-263,-255,-231,-214,-218,-285,-271,-354,-350,-417,-430,-428,-406,-400,-382,-490,-510,-556,-555,-597,-579,-741,-720,-2285,-2296,-1628,-1627,-29944,-12839,-6452,-6111,-2172,-2035]} 1. d4 {[%emt 0:00:03]} Nf6 {[%emt 0:00:04]} 2. c4 {[%emt 0:00:09]} e6 {[%emt 0:01:31]} 3. Nf3 {[%emt 0:00:10]} b6 {[%emt 0:00:03]} 4. g3 {[%emt 0:00:16]} Ba6 {[%emt 0:00:02]} 5. b3 {[%emt 0:00:10]} d5 {[%emt 0:00:05]} 6. Bg2 {[%emt 0:03:26]} Bb4+ {[%emt 0:00:08]} 7. Bd2 {[%emt 0:00:28]} Be7 {[%emt 0:00:03]} 8. cxd5 {[%emt 0:07:25]} exd5 {[%emt 0:00:05]} 9. O-O {[%emt 0:00:16]} O-O {[%emt 0:00:03]} 10. Nc3 {[%emt 0:01:51]} Re8 {[%emt 0:00:21]} 11. Re1 {[%emt 0:10:18] Recently 11.Rc1 got a lot of attention. E15: Queen's Indian: 4 g3 sidelines, 4 g3 Ba6 and 4 g3 Bb7 early deviations.} Nbd7 {[%emt 0:01:11]} 12. Rc1 {[%emt 0:02:53]} Bb7 {[%emt 0:13:15]} 13. Ne5 {[%emt 0:16:12] The position is equal.} Ba3 {[%emt 0:00:42][%csl LRc1,LRe5] [#]} 14. Nxd7 $146 {[%emt 0:05:16]} (14. Rc2 $5 {[%cal Rc3b5]}) ({Predecessor:} 14. Rc2 Ne4 15. Nd3 c6 16. b4 a5 17. b5 c5 18. dxc5 Ndxc5 19. Nxe4 dxe4 20. Nb2 {1-0 (31) Rivera de Leon,J (2110)-Owens,J (2173) ICCF email 2017}) 14... Qxd7 {[%emt 0:00:16]} 15. Rc2 {[%emt 0:00:31]} a5 {[%emt 0:06:26]} 16. Bf4 {[%emt 0:06:51][%cal Of4c7]} Rac8 {[%emt 0:01:21]} 17. Qd3 {[%emt 0:01:46]} Ne4 {[%emt 0:01:26]} 18. Nb1 {[%emt 0:07:23]} Bb4 {[%emt 0:04:06]} 19. Rec1 {[%emt 0:00:17][%cal Rc2c7]} c6 {[%emt 0:00:21]} 20. Nd2 {[%emt 0:02:45][%cal Rd2e4]} c5 {[%emt 0:04:45]} 21. Nf3 {[%emt 0:15:59]} f6 {[%emt 0:01:23][%cal Oc5c4]} 22. dxc5 {[%emt 0:01:34]} Nxc5 {[%emt 0:04:40]} (22... bxc5 $15 23. Nd2 f5) 23. Qd4 {[%emt 0:03:18]} Ba3 $36 {[%emt 0:00:23][%mdl 2048] Inhibits Qb2. White must now prevent ...Ne6. Black has some pressure.} 24. Rd1 {[%emt 0:02:04]} Ne6 {[%emt 0:09:41][%csl LRc2,LRd4] Black continues to play with concentration.} 25. Qd2 {[%emt 0:01:34] [#]} ({Better is} 25. Qd3) 25... Bb4 $1 $17 {[%emt 0:00:28]} 26. Qc1 {[%emt 0:00:54]} Nxf4 {[%emt 0:03:07]} 27. gxf4 {[%emt 0:00:02]} Rxe2 $1 {[%emt 0:02:36] Black is more active.} 28. Rxc8+ {[%emt 0:03:03]} Qxc8 {[%emt 0:04:16]} 29. Qxc8+ {[%emt 0:00:22]} Bxc8 {[%emt 0:00:04]} 30. Nd4 {[%emt 0:02:31]} Rxa2 {[%emt 0:00:06]} 31. Bxd5+ {[%emt 0:00:10]} Kf8 {[%emt 0:00:02]} 32. Kg2 {[%emt 0:05:04]} (32. Ne6+ $142 Ke7 33. f5) 32... Rd2 $19 {[%emt 0:06:54]} 33. Rxd2 {[%emt 0:00:13]} Bxd2 {[%emt 0:00:03][%mdl 4096] Endgame KBB-KBN} 34. f5 {[%emt 0:01:27]} g6 {[%emt 0:01:26][%cal Bg7g6,Bg6g5][%mdl 32]} 35. Be4 {[%emt 0:00:39]} g5 {[%emt 0:02:31]} 36. Bd5 {[%emt 0:00:26]} Ke7 {[%emt 0:00:09]} 37. Bg8 {[%emt 0:00:30]} Bb7+ {[%emt 0:03:15]} 38. f3 {[%emt 0:00:10]} h6 {[%emt 0:00:24]} 39. Kf2 {[%emt 0:00:36]} Bc3 {[%emt 0:01:54]} 40. Nb5 {[%emt 0:00:00]} Be5 {[%emt 0:00:00]} 41. h3 {[%emt 0:00:38]} Bc8 {[%emt 0:00:12] Inhibits Be6.} 42. Bh7 {[%emt 0:01:36]} Bb2 {[%emt 0:02:56] Against Na3. aiming for ...Bd7.} 43. Ke3 {[%emt 0:09:55]} Bd7 {[%emt 0:00:32]} 44. Nd4 {[%emt 0:00:24]} Bxd4+ {[%emt 0:00:05]} 45. Kxd4 {[%emt 0:00:06]} Bc6 {[%emt 0:00:01]} 46. f4 {[%emt 0:01:43]} gxf4 {[%emt 0:00:04] [#] ( -> ...Kd6)} 47. Bg8 {[%emt 0:00:12]} Kd6 {[%emt 0:00:04]} 48. Bc4 {[%emt 0:01:43]} b5 {[%emt 0:00:03] Weighted Error Value: White=0.54/Black=0.02 (flawless)} 0-1

[Event "15th Paleochora Open 2022"]
[Site "Paleochora"]
[Date "2022.07.18"]
[Round "2.12"]
[White "Hamitevici, Vladimir"]
[Black "Kalogridakis, Theodoros"]
[Result "1-0"]
[ECO "B23"]
[WhiteElo "2473"]
[BlackElo "2175"]
[Annotator "TA"]
[PlyCount "79"]
[EventDate "2022.07.17"]
[EventType "swiss"]
[EventCountry "GRE"]
[SourceTitle "playchess.com"]
[Source "ChessBase"]
[SourceQuality "1"]
[TimeControl "40/5400+30:900+30"]

{[%evp 9,79,0,0,0,-15,-6,10,7,66,64,71,70,56,71,77,58,93,109,105,98,98,98,98,93,148,122,173,96,100,75,75,74,74,77,88,77,88,92,114,119,200,196,254,259,378,237,239,218,250,250,241,235,283,261,385,321,504,485,561,535,590,522,510,531,524,519,504,502,464,474,506,456]} 1. e4 {[%emt 0:00:13]} c5 {[%emt 0:00:10]} 2. Nc3 {[%emt 0:00:40]} d6 {[%emt 0:00:49]} 3. d4 {[%emt 0:01:06]} cxd4 {[%emt 0:00:07]} 4. Qxd4 {[%emt 0:00:05]} Nc6 {[%emt 0:00:27]} 5. Qd2 {[%emt 0:00:08]} Nf6 {[%emt 0:07:57]} 6. b3 {[%emt 0:01:09] B23: Closed Sicilian: Lines without g3.} e6 {[%emt 0:16:05]} 7. Bb2 {[%emt 0:00:28]} d5 {[%emt 0:01:06] is now debated instead of 7...Be7.} 8. exd5 {[%emt 0:01:15] [#] The position is equal.} Nxd5 $146 {[%emt 0:00:05]} (8... exd5 $11 9. O-O-O Be6) ({Predecessor:} 8... exd5 9. O-O-O Be6 10. a3 Qa5 11. b4 Qb6 12. Nf3 Bd6 13. Bd3 a5 14. b5 Ne7 {1-0 (27) Tabatabaei,M (2650)-Donchenko,A (2599) Jermuk 2022}) 9. Nxd5 $14 {[%emt 0:00:46]} Qxd5 {[%emt 0:00:05]} 10. Qxd5 {[%emt 0:00:39]} exd5 {[%emt 0:00:07]} 11. O-O-O {[%emt 0:00:08]} Be6 {[%emt 0:00:02]} 12. Ne2 {[%emt 0:02:19]} Bc5 {[%emt 0:14:07]} 13. Bxg7 {[%emt 0:01:16]} Rg8 {[%emt 0:00:18]} 14. Bd4 {[%emt 0:00:29]} Nxd4 {[%emt 0:00:57]} 15. Nxd4 {[%emt 0:00:07]} Rg4 {[%emt 0:00:57]} 16. c3 {[%emt 0:00:52]} Ba3+ {[%emt 0:14:02]} ({Black should try} 16... Rc8 17. f3 Rf4) 17. Kb1 {[%emt 0:06:06] [#] Nb5 is the strong threat.} Rc8 {[%emt 0:02:38]} (17... Bc5 $16 18. f3 Rg8) 18. Nb5 {[%emt 0:00:47]} (18. g3 $18) 18... Bc5 $16 {[%emt 0:01:17]} 19. Kb2 {[%emt 0:01:20]} a6 {[%emt 0:09:30]} 20. Nd4 {[%emt 0:01:22]} Bxd4 {[%emt 0:01:43]} 21. cxd4 {[%emt 0:00:09]} Bf5 {[%emt 0:00:07] [#]} 22. Rd2 {[%emt 0:00:16] Prevents Rc2+.} Rg6 {[%emt 0:00:09]} 23. Be2 {[%emt 0:00:34]} Rgc6 {[%emt 0:11:27]} 24. Bd1 {[%emt 0:00:26] Inhibits Rc2+.} Rc1 {[%emt 0:04:48]} (24... Ke7 $16 {might work better.}) 25. Re1+ $18 {[%emt 0:00:06]} Kd7 {[%emt 0:00:05]} (25... Kf8 $142) 26. Re5 {[%emt 0:01:18][%csl LRd5,LRf5]} Rb1+ {[%emt 0:00:59]} 27. Ka3 {[%emt 0:00:05]} Be6 {[%emt 0:00:12]} 28. Bc2 {[%emt 0:01:32]} Rg1 {[%emt 0:02:36]} 29. f4 {[%emt 0:00:37] Hoping for f5.} ({Not} 29. Bxh7 Rxg2 30. Bf5 Kd6 $11) 29... Kd6 {[%emt 0:00:52]} 30. Rh5 {[%emt 0:00:54]} ({But not} 30. Bxh7 $6 Rh8) 30... a5 {[%emt 0:02:51]} 31. Rxh7 {[%emt 0:01:24]} ({Don't do} 31. Bxh7 $6 Rh8 32. h3 b5 $16) 31... b5 {[%emt 0:01:06]} (31... Rg8 {is a better defense.} 32. g3 Rf8) 32. Bd3 {[%emt 0:03:32]} b4+ {[%emt 0:07:25]} (32... Bd7 $142 33. Rxf7 Rh8) 33. Ka4 {[%emt 0:03:50] White is clearly winning.} Rb8 {[%emt 0:01:19]} 34. Kxa5 {[%emt 0:01:33]} Rc1 {[%emt 0:00:10]} 35. Bb5 {[%emt 0:03:35]} Rc7 {[%emt 0:00:48]} 36. Kxb4 {[%emt 0:00:14]} Bd7 {[%emt 0:00:25]} 37. a4 {[%emt 0:01:19][%cal Ba2a4,Ba4b5,Bb5b6][%mdl 32]} Bxb5 {[%emt 0:00:09]} 38. axb5 {[%emt 0:00:05]} Rcb7 {[%emt 0:00:04]} 39. Rh6+ {[%emt 0:02:22]} Kd7 {[%emt 0:00:11]} 40. b6 {[%emt 0:00:00] Weighted Error Value: White=0.11 (very precise) /Black=0.27 (precise)} 1-0

[Event "15th Paleochora Open 2022"]
[Site "Paleochora"]
[Date "2022.07.18"]
[Round "2.13"]
[White "Sidiropoulos, Nikolaos"]
[Black "Leniart, Arkadiusz"]
[Result "0-1"]
[ECO "E24"]
[WhiteElo "2228"]
[BlackElo "2473"]
[Annotator "TA"]
[PlyCount "88"]
[EventDate "2022.07.17"]
[EventType "swiss"]
[EventCountry "GRE"]
[SourceTitle "playchess.com"]
[Source "ChessBase"]
[SourceQuality "1"]
[TimeControl "40/5400+30:900+30"]

{[%evp 14,87,0,0,0,12,22,0,18,-13,-16,-16,-16,-18,0,-7,0,-47,-34,-50,-50,-49,-32,-76,-60,-64,-54,-85,-59,-60,-55,-55,-61,-206,-206,-337,-341,-295,-313,-438,-433,-432,-424,-416,-403,-387,-379,-29986,-29987,-5714,-572,-558,-547,-856,-849,-724,-722,-796,-802,-29982,-1910,-1427,-1344,-1645,-1484,-5289,-5289,-29994,-29995,-29996,-29997,-29997,-29998,-29998,-29999,-29999]} 1. d4 {[%emt 0:00:03]} Nf6 {[%emt 0:00:10]} 2. c4 {[%emt 0:00:08]} e6 {[%emt 0:00:08]} 3. Nc3 {[%emt 0:00:08]} Bb4 {[%emt 0:00:10]} 4. a3 {[%emt 0:00:12]} Bxc3+ {[%emt 0:00:07]} 5. bxc3 {[%emt 0:00:05]} c5 {[%emt 0:00:32]} 6. Qc2 {[%emt 0:01:00]} Nc6 {[%emt 0:01:54]} 7. Nf3 {[%emt 0:00:24]} d6 {[%emt 0:00:52]} 8. e4 {[%emt 0:04:03]} e5 {[%emt 0:01:28][%cal Re5d4] E24: Nimzo-Indian: Sämisch: Unusual Black 5th moves and 5...c5 sidelines.} 9. d5 {[%emt 0:01:49]} Ne7 {[%emt 0:03:11]} 10. Bg5 {[%emt 0:08:58]} Ng6 {[%emt 0:02:55] The position is equal.} 11. Nh4 {[%emt 0:03:36]} h6 {[%emt 0:10:34]} 12. Nxg6 {[%emt 0:01:04]} fxg6 {[%emt 0:00:06] [#]} 13. Be3 $146 {[%emt 0:06:12]} ({Predecessor:} 13. Bc1 O-O 14. Be2 Bd7 15. a4 g5 16. O-O g4 17. a5 b6 18. axb6 Qxb6 19. Be3 {0-1 (61) Greig,S (2164)-St Pierre,B (2280) ICCF email 2014}) 13... O-O {[%emt 0:03:58]} 14. Be2 {[%emt 0:02:56]} g5 {[%emt 0:00:43]} 15. f3 {[%emt 0:05:58]} (15. O-O $11) 15... g4 $15 {[%emt 0:02:54]} 16. O-O {[%emt 0:02:40]} gxf3 {[%emt 0:02:22]} 17. Bxf3 {[%emt 0:00:41]} Qe8 {[%emt 0:01:19]} 18. Bf2 {[%emt 0:05:49]} g5 {[%emt 0:03:13]} 19. Be3 {[%emt 0:03:45]} Qg6 {[%emt 0:01:02]} 20. Rf2 {[%emt 0:00:43]} Bd7 {[%emt 0:08:04]} 21. Raf1 {[%emt 0:02:22]} Kg7 {[%emt 0:02:05]} 22. Bd2 {[%emt 0:12:12]} Rf7 {[%emt 0:08:06]} 23. g3 {[%emt 0:01:20] Loses the game.} ({White should play} 23. h3 $15) 23... Bh3 $19 {[%emt 0:05:00] And now ...Raf8 would win.} 24. Bg2 {[%emt 0:01:27]} (24. Re1 {was called for.}) 24... Bxg2 {[%emt 0:00:09]} 25. Kxg2 {[%emt 0:00:05]} Raf8 {[%emt 0:00:04]} 26. Rf5 {[%emt 0:00:55] [#]} Nxe4 $1 {[%emt 0:04:16][%mdl 512]} 27. Rxf7+ {[%emt 0:01:08]} Rxf7 {[%emt 0:00:05]} 28. Rxf7+ {[%emt 0:00:22]} Kxf7 {[%emt 0:00:06][%mdl 4096] Endgame KQB-KQN} 29. Be1 {[%emt 0:00:27]} Nf6 {[%emt 0:01:40]} 30. Qb3 {[%emt 0:00:23]} (30. Qe2 $19) 30... Qe4+ {[%emt 0:00:19]} 31. Kf1 {[%emt 0:00:04]} Qf3+ {[%emt 0:06:47]} (31... Ng4 $142 {( -> ...Qf3+)} 32. h3 Nh2+ 33. Kf2 Qf3+ 34. Kg1 Qe2 35. Bf2 Nf3+ 36. Kg2 Nd2 37. Qxb7+ Kf6 38. Qb1 Nxb1 39. Kg1 Nd2 40. g4 Qf1+ 41. Kh2 Qxf2+ 42. Kh1 Nf3 43. a4 Qh2#) 32. Kg1 {[%emt 0:00:07]} b6 {[%emt 0:00:22]} 33. Qa4 {[%emt 0:00:09]} e4 {[%emt 0:01:19]} 34. Qxa7+ {[%emt 0:00:28]} Kg6 {[%emt 0:00:04]} 35. Qe7 {[%emt 0:00:47]} e3 {[%emt 0:00:44]} 36. g4 {[%emt 0:00:47]} e2 {[%emt 0:02:52]} (36... Qxg4+ $142 37. Kf1 Qf3+ 38. Kg1 Qe2 39. Bg3 Qd1+ 40. Kg2 e2 41. Bf2 g4 42. Qe3 Qf1+ 43. Kg3 Qh3+ 44. Kf4 Qxh2+ 45. Bg3 Nh5+ 46. Kxg4 Qxg3+ 47. Qxg3 Nxg3 48. Kxg3 e1=Q+ 49. Kg2 h5 50. Kf3 h4 51. Kf4 Qg3+ 52. Ke4 h3 53. a4 h2 54. a5 h1=Q#) 37. Bf2 {[%emt 0:00:12]} Qxg4+ {[%emt 0:00:22]} 38. Bg3 {[%emt 0:00:31]} h5 {[%emt 0:02:32][%cal Bh6h5,Bh5h4][%mdl 32]} 39. Kf2 {[%emt 0:00:35]} h4 {[%emt 0:00:21]} 40. Bxd6 {[%emt 0:00:00]} Ne4+ {[%emt 0:00:00] Black mates.} 41. Ke1 {[%emt 0:00:14] [#]} Qg1+ $1 {[%emt 0:00:32]} 42. Kxe2 {[%emt 0:00:04]} Qf2+ {[%emt 0:00:10]} 43. Kd3 {[%emt 0:00:04]} Qd2+ {[%emt 0:00:21]} 44. Kxe4 {[%emt 0:00:06]} Qe2# {[%emt 0:00:03] Weighted Error Value: White=1.11/Black=0.36} 0-1